fUSD/lending_fUSD_20240318
["ID","MTS","AMOUNT","RATE_DAILY","PERIOD"]
[319472804,1710799873229,-500.0,0.00022465,2]
[319472805,1710799873237,-666.77,0.00022465,2]
[319472806,1710799873246,-500.0,0.00022465,2]
[319472807,1710799873255,-500.0,0.00022465,2]
[319472808,1710799873265,-500.0,0.00022465,2]
[319472809,1710799873274,-2410.75,0.00022465,2]
[319472810,1710799873284,-500.0,0.00022465,2]
[319472811,1710799873293,-1083.62,0.00022465,2]
[319472812,1710799873302,-500.0,0.00022465,2]
[319472813,1710799873311,-1096.76,0.00022465,2]
[319472814,1710799873320,-1153.52,0.00022465,2]
[319472815,1710799873330,-500.0,0.00022465,2]
[319472816,1710799873340,-500.0,0.00022465,2]
[319472817,1710799873349,-500.0,0.00022465,2]
[319472818,1710799873360,-500.0,0.00022465,2]
[319472819,1710799873370,-1579.95,0.00022465,2]
[319472820,1710799873379,-1079.02,0.00022465,2]
[319472821,1710799873389,-500.0,0.00022465,2]
[319472822,1710799873399,-500.0,0.00022465,2]
[319472823,1710799873409,-500.0,0.00022465,2]
[319472824,1710799873420,-500.0,0.00022465,2]
[319472825,1710799873429,-500.0,0.00022465,2]
[319472826,1710799873439,-604.92,0.00022465,2]
[319472827,1710799873449,-500.0,0.00022465,2]
[319472828,1710799873459,-2112.17,0.00022465,2]
[319472829,1710799873469,-788.06,0.00022465,2]
[319472830,1710799873478,-965.6,0.00022465,2]
[319472831,1710799873488,-500.0,0.00022465,2]
[319472832,1710799873497,-500.0,0.00022465,2]
[319472833,1710799873507,-567.24,0.00022465,2]
[319472834,1710799873517,-1057.53,0.00022465,2]
[319472835,1710799873526,-500.0,0.00022465,2]
[319472836,1710799873536,-464.31547515,0.00022465,2]
[319472837,1710799873546,-1346.77,0.00022465,2]
[319472838,1710799873555,-712.98,0.00022465,2]
[319472839,1710799873565,-624.81,0.00022465,2]
[319472840,1710799873579,-151.0,0.00022465,7]
[319472841,1710799873589,-300.327894,0.00022465,7]
[319472842,1710799873598,-1820.6,0.00022465,2]
[319472843,1710799873608,-500.0,0.00022465,2]
[319472844,1710799873618,-500.0,0.00022465,2]
[319472845,1710799873627,-750.79,0.00022465,2]
[319472846,1710799873638,-593.51,0.00022465,2]
[319472847,1710799873647,-628.64,0.00022465,2]
[319472848,1710799873657,-787.89,0.00022465,2]
[319472849,1710799873666,-750.42,0.00022465,2]
[319472850,1710799873676,-622.98,0.00022465,2]
[319472851,1710799873871,-500.0,0.00022465,2]
[319472852,1710799873880,-1628.79,0.00022465,2]
[319472853,1710799873890,-500.0,0.00022465,2]
[319472854,1710799873899,-500.0,0.00022465,2]
[319472855,1710799873908,-434.42376969,0.00022465,2]
[319472856,1710799873917,-837.33,0.00022465,2]
[319472857,1710799873925,-830.73,0.00022465,2]
[319472858,1710799873935,-500.0,0.00022465,2]
[319472859,1710799873944,-3414.73,0.00022465,2]
[319472860,1710799873953,-500.0,0.00022465,2]
[319472861,1710799873962,-1594.83,0.00022465,2]
[319472862,1710799873971,-1565.76,0.00022465,2]
[319472863,1710799873980,-500.0,0.00022465,2]
[319472864,1710799873990,-500.0,0.00022465,2]
[319472865,1710799873999,-2289.86,0.00022465,2]
[319472866,1710799874008,-500.0,0.00022465,2]
[319472867,1710799874018,-1043.46,0.00022465,2]
[319472868,1710799874028,-2327.27,0.00022465,2]
[319472869,1710799874037,-1166.79,0.00022465,2]
[319472870,1710799874046,-549.91,0.00022465,2]
[319472871,1710799874055,-568.66,0.00022465,2]
[319472872,1710799874064,-500.0,0.00022465,2]
[319472873,1710799874073,-771.19,0.00022465,2]
[319472874,1710799874082,-2753.66,0.00022465,2]
[319472875,1710799874091,-1513.08,0.00022465,2]
[319472876,1710799874100,-1842.48,0.00022465,2]
[319472877,1710799874111,-500.0,0.00022465,2]
[319472878,1710799874121,-500.0,0.00022465,2]
[319472879,1710799874130,-500.0,0.00022465,2]
[319472880,1710799874140,-500.0,0.00022465,2]
[319472881,1710799874149,-1460.74,0.00022465,2]
[319472882,1710799874158,-895.46,0.00022465,2]
[319472883,1710799874168,-500.0,0.00022465,2]
[319472884,1710799874177,-942.07,0.00022465,2]
[319472885,1710799874188,-1989.79,0.00022465,2]
[319472886,1710799874197,-500.0,0.00022465,2]
[319472887,1710799874207,-1990.34,0.00022465,2]
[319472888,1710799874216,-500.0,0.00022465,2]
[319472889,1710799874226,-570.11,0.00022465,2]
[319472890,1710799874235,-594.54,0.00022465,2]
[319472891,1710799874245,-500.0,0.00022465,2]
[319472892,1710799874254,-500.0,0.00022465,2]
[319472893,1710799874264,-500.0,0.00022465,2]
[319472894,1710799874273,-500.0,0.00022465,2]
[319472895,1710799874283,-500.0,0.00022465,2]
[319472896,1710799874292,-2010.18,0.00022465,2]
[319472897,1710799874301,-500.0,0.00022465,2]
[319472898,1710799874310,-500.0,0.00022465,2]
[319472899,1710799874319,-500.0,0.00022465,2]
[319472900,1710799874328,-500.0,0.00022465,2]
[319472901,1710799874337,-500.0,0.00022465,2]
[319472902,1710799874347,-1225.65,0.00022465,2]
[319472903,1710799874360,-1089.38,0.00022465,2]
[319472904,1710799874370,-500.0,0.00022465,2]
[319472905,1710799874380,-2976.15,0.00022465,2]
[319472906,1710799874390,-705.19,0.00022465,2]
[319472907,1710799874399,-508.99,0.00022465,2]
[319472908,1710799874408,-500.0,0.00022465,2]
[319472909,1710799874418,-501.15,0.00022465,2]
[319472910,1710799874427,-1173.9,0.00022465,2]
[319472911,1710799874436,-500.0,0.00022465,2]
[319472912,1710799874446,-1787.1,0.00022465,2]
[319472913,1710799874454,-500.0,0.00022465,2]
[319472914,1710799874463,-500.0,0.00022465,2]
[319472915,1710799874473,-1969.89,0.00022465,2]
[319472916,1710799874482,-551.56,0.00022465,2]
[319472917,1710799874490,-500.0,0.00022465,2]
[319472918,1710799874500,-500.0,0.00022465,2]
[319472919,1710799874509,-634.39,0.00022465,2]
[319472920,1710799874518,-515.85,0.00022465,2]
[319472921,1710799874527,-500.0,0.00022465,2]
[319472922,1710799874536,-294.67849702,0.00022465,2]
[319472923,1710799874548,-1763.14,0.00022465,2]
[319472924,1710799874557,-500.0,0.00022465,2]
[319472925,1710799874567,-1610.23,0.00022465,2]
[319472926,1710799874579,-500.0,0.00022465,2]
[319472927,1710799874589,-500.0,0.00022465,2]
[319472928,1710799874598,-698.44,0.00022465,2]
[319472929,1710799874610,-757.78,0.00022465,2]
[319472930,1710799874620,-500.0,0.00022465,2]
[319472931,1710799874629,-376.52887926,0.00022465,2]
[319472932,1710799874639,-500.0,0.00022465,2]
[319472933,1710799874650,-500.0,0.00022465,2]
[319472934,1710799874660,-500.0,0.00022465,2]
[319472935,1710799874669,-3621.53,0.00022465,2]
[319472936,1710799874678,-500.0,0.00022465,2]
[319472937,1710799874687,-1107.01,0.00022465,2]
[319472938,1710799874696,-494.93971851,0.00022465,2]
[319472939,1710799874705,-833.03,0.00022465,2]
[319472940,1710799874714,-365.17878825,0.00022465,2]
[319472941,1710799874723,-3272.98,0.00022465,2]
[319472942,1710799874732,-500.0,0.00022465,2]
[319472943,1710799874741,-500.0,0.00022465,2]
[319472944,1710799874750,-617.42,0.00022465,2]
[319472945,1710799874760,-500.0,0.00022465,2]
[319472946,1710799874769,-546.38960918,0.00022465,2]
[319472947,1710799874778,-1059.1,0.00022465,2]
[319472948,1710799874787,-436.44060896,0.00022465,2]
[319472949,1710799874796,-500.0,0.00022465,2]
[319472950,1710799874805,-2995.13,0.00022465,2]
[319472951,1710799874814,-500.0,0.00022465,2]
[319472952,1710799874823,-500.0,0.00022465,2]
[319472953,1710799874832,-500.0,0.00022465,2]
[319472954,1710799874841,-1379.17,0.00022465,2]
[319472955,1710799874850,-500.0,0.00022465,2]
[319472956,1710799874861,-2205.14,0.00022465,2]
[319472957,1710799874871,-1296.97,0.00022465,2]
[319472958,1710799874880,-684.91,0.00022465,2]
[319472959,1710799874889,-500.0,0.00022465,2]
[319472960,1710799874898,-500.0,0.00022465,2]
[319472961,1710799874907,-500.0,0.00022465,2]
[319472962,1710799874916,-1167.23,0.00022465,2]
[319472963,1710799874925,-500.0,0.00022465,2]
[319472964,1710799874935,-1111.67,0.00022465,2]
[319472965,1710799874944,-500.0,0.00022465,2]
[319472966,1710799874954,-500.0,0.00022465,2]
[319472967,1710799874963,-1840.74,0.00022465,2]
[319472968,1710799874973,-1159.15,0.00022465,2]
[319472969,1710799874982,-500.0,0.00022465,2]
[319472970,1710799874991,-500.0,0.00022465,2]
[319472971,1710799874999,-1071.26,0.00022465,2]
[319472972,1710799875009,-732.2,0.00022465,2]
[319472973,1710799875018,-500.0,0.00022465,2]
[319472974,1710799875027,-2487.12,0.00022465,2]
[319472975,1710799875036,-500.0,0.00022465,2]
[319472976,1710799875044,-1409.81,0.00022465,2]
[319472977,1710799875053,-500.0,0.00022465,2]
[319472978,1710799875062,-2258.29,0.00022465,2]
[319472979,1710799875071,-500.0,0.00022465,2]
[319472980,1710799875080,-885.61,0.00022465,2]
[319472981,1710799875090,-500.0,0.00022465,2]
[319472982,1710799875099,-728.7,0.00022465,2]
[319472983,1710799875108,-500.0,0.00022465,2]
[319472984,1710799875117,-500.0,0.00022465,2]
[319472985,1710799875127,-981.29,0.00022465,2]
[319472986,1710799875135,-3027.38,0.00022465,2]
[319472987,1710799875144,-619.02,0.00022465,2]
[319472988,1710799875153,-545.81728546,0.00022465,2]
[319472989,1710799875163,-500.0,0.00022465,2]
[319472990,1710799875171,-2230.77,0.00022465,2]
[319472991,1710799875180,-2148.85,0.00022465,2]
[319472992,1710799875189,-500.0,0.00022465,2]
[319472993,1710799875198,-847.31,0.00022465,2]
[319472994,1710799875207,-500.0,0.00022465,2]
[319472995,1710799875216,-500.0,0.00022465,2]
[319472996,1710799875225,-500.0,0.00022465,2]
[319472997,1710799875234,-500.0,0.00022465,2]
[319472998,1710799875243,-1040.92,0.00022465,2]
[319472999,1710799875252,-500.0,0.00022465,2]
[319473000,1710799875261,-1016.05,0.00022465,2]
[319473001,1710799875270,-625.78,0.00022465,2]
[319473002,1710799875279,-500.0,0.00022465,2]
[319473003,1710799875288,-500.0,0.00022465,2]
[319473004,1710799875297,-500.0,0.00022465,2]
[319473005,1710799875306,-673.87,0.00022465,2]
[319473006,1710799875315,-1988.29,0.00022465,2]
[319473007,1710799875324,-500.0,0.00022465,2]
[319473008,1710799875333,-803.43,0.00022465,2]
[319473009,1710799875342,-2712.0,0.00022465,2]
[319473010,1710799875352,-618.27,0.00022465,2]
[319473011,1710799875361,-925.33,0.00022465,2]
[319473012,1710799875371,-1492.36,0.00022465,2]
[319473013,1710799875380,-1934.24,0.00022465,2]
[319473014,1710799875390,-500.0,0.00022465,2]
[319473015,1710799875399,-1347.96,0.00022465,2]
[319473016,1710799875408,-500.0,0.00022465,2]
[319473017,1710799875418,-500.0,0.00022465,2]
[319473018,1710799875428,-618.35,0.00022465,2]
[319473019,1710799875437,-500.0,0.00022465,2]
[319473020,1710799875447,-500.0,0.00022465,2]
[319473021,1710799875457,-736.87,0.00022465,2]
[319473022,1710799875466,-3249.34,0.00022465,2]
[319473023,1710799875475,-500.0,0.00022465,2]
[319473024,1710799875484,-500.0,0.00022465,2]
[319473025,1710799875493,-1048.99,0.00022465,2]
[319473026,1710799875502,-2027.85,0.00022465,2]
[319473027,1710799875512,-500.0,0.00022465,2]
[319473028,1710799875521,-555.58,0.00022465,2]
[319473029,1710799875530,-695.99,0.00022465,2]
[319473030,1710799875540,-500.0,0.00022465,2]
[319473031,1710799875549,-500.0,0.00022465,2]
[319473032,1710799875558,-1686.42,0.00022465,2]
[319473033,1710799875571,-500.0,0.00022465,2]
[319473034,1710799875581,-500.0,0.00022465,2]
[319473035,1710799875590,-500.0,0.00022465,2]
[319473036,1710799875599,-500.0,0.00022465,2]
[319473037,1710799875609,-3300.65,0.00022465,2]
[319473038,1710799875618,-1879.8,0.00022465,2]
[319473039,1710799875627,-689.62,0.00022465,2]
[319473040,1710799875636,-600.13,0.00022465,2]
[319473041,1710799875645,-3602.93,0.00022465,2]
[319473042,1710799875658,-466.68574647,0.00022465,2]
[319473043,1710799875668,-518.63699756,0.00022465,2]
[319473044,1710799875679,-500.0,0.00022465,2]
[319473045,1710799875690,-500.0,0.00022465,2]
[319473046,1710799875699,-500.0,0.00022465,2]
[319473047,1710799875708,-500.0,0.00022465,2]
[319473048,1710799875717,-839.53,0.00022465,2]
[319473049,1710799875726,-734.91,0.00022465,2]
[319473050,1710799875735,-1753.56,0.00022465,2]
[319473051,1710799875744,-500.0,0.00022465,2]
[319473052,1710799875753,-839.74,0.00022465,2]
[319473053,1710799875762,-500.0,0.00022465,2]
[319473054,1710799875770,-500.0,0.00022465,2]
[319473055,1710799875779,-500.0,0.00022465,2]
[319473056,1710799875788,-500.0,0.00022465,2]
[319473057,1710799875797,-4941.23,0.00022465,2]
[319473058,1710799875806,-500.0,0.00022465,2]
[319473059,1710799875814,-924.55,0.00022465,2]
[319473060,1710799875823,-646.58,0.00022465,2]
[319473061,1710799875832,-1862.07,0.00022465,2]
[319473062,1710799875841,-1444.11,0.00022465,2]
[319473063,1710799875850,-500.0,0.00022465,2]
[319473064,1710799875862,-2596.77,0.00022465,2]
[319473065,1710799875870,-1913.61,0.00022465,2]
[319473066,1710799875879,-600.66,0.00022465,2]
[319473067,1710799875888,-1169.17,0.00022465,2]
[319473068,1710799875897,-501.0,0.00022465,2]
[319473069,1710799875906,-500.0,0.00022465,2]
[319473070,1710799875915,-500.0,0.00022465,2]
[319473071,1710799875924,-671.74,0.00022465,2]
[319473072,1710799875933,-500.0,0.00022465,2]
[319473073,1710799875942,-660.79,0.00022465,2]
[319473074,1710799875951,-500.0,0.00022465,2]
[319473075,1710799875960,-500.0,0.00022465,2]
[319473076,1710799875969,-500.0,0.00022465,2]
[319473077,1710799875978,-4429.56,0.00022465,2]
[319473078,1710799875986,-500.0,0.00022465,2]
[319473079,1710799875996,-500.0,0.00022465,2]
[319473080,1710799876004,-645.13,0.00022465,2]
[319473081,1710799876013,-1387.34,0.00022465,2]
[319473082,1710799876023,-500.0,0.00022465,2]
[319473083,1710799876032,-500.0,0.00022465,2]
[319473084,1710799876041,-1092.65,0.00022465,2]
[319473085,1710799876050,-500.0,0.00022465,2]
[319473086,1710799876059,-1234.18,0.00022465,2]
[319473087,1710799876067,-775.21,0.00022465,2]
[319473088,1710799876077,-660.8,0.00022465,2]
[319473089,1710799876085,-1640.92,0.00022465,2]
[319473090,1710799876094,-520.66,0.00022465,2]
[319473091,1710799876103,-500.0,0.00022465,2]
[319473092,1710799876113,-618.02,0.00022465,2]
[319473093,1710799876123,-500.0,0.00022465,2]
[319473094,1710799876131,-500.0,0.00022465,2]
[319473095,1710799876140,-2991.4,0.00022465,2]
[319473096,1710799876149,-526.67,0.00022465,2]
[319473097,1710799876158,-500.0,0.00022465,2]
[319473098,1710799876167,-3432.69,0.00022465,2]
[319473099,1710799876176,-500.0,0.00022465,2]
[319473100,1710799876185,-929.21,0.00022465,2]
[319473101,1710799876194,-500.0,0.00022465,2]
[319473102,1710799876202,-2512.6,0.00022465,2]
[319473103,1710799876211,-553.17,0.00022465,2]
[319473104,1710799876220,-632.91,0.00022465,2]
[319473105,1710799876229,-500.0,0.00022465,2]
[319473106,1710799876238,-587.03,0.00022465,2]
[319473107,1710799876247,-500.0,0.00022465,2]
[319473108,1710799876255,-500.0,0.00022465,2]
[319473109,1710799876264,-500.0,0.00022465,2]
[319473110,1710799876274,-500.0,0.00022465,2]
[319473111,1710799876282,-1670.28,0.00022465,2]
[319473112,1710799876291,-588.94,0.00022465,2]
[319473113,1710799876300,-778.13,0.00022465,2]
[319473114,1710799876309,-1508.72,0.00022465,2]
[319473115,1710799876483,-500.0,0.00022465,2]
[319473116,1710799876493,-992.88,0.00022465,2]
[319473117,1710799876502,-2672.81,0.00022465,2]
[319473118,1710799876511,-1421.34,0.00022465,2]
[319473119,1710799876521,-1479.34,0.00022465,2]
[319473120,1710799876531,-500.0,0.00022465,2]
[319473121,1710799876540,-1591.7,0.00022465,2]
[319473122,1710799876549,-500.0,0.00022465,2]
[319473123,1710799876560,-549.69,0.00022465,2]
[319473124,1710799876572,-500.0,0.00022465,2]
[319473125,1710799876584,-1096.72,0.00022465,2]
[319473126,1710799876593,-500.0,0.00022465,2]
[319473127,1710799876603,-500.0,0.00022465,2]
[319473128,1710799876614,-569.21912283,0.00022465,2]
[319473129,1710799876623,-2210.21,0.00022465,2]
[319473130,1710799876632,-1855.24,0.00022465,2]
[319473131,1710799876642,-869.7,0.00022465,2]
[319473132,1710799876652,-500.0,0.00022465,2]
[319473133,1710799876662,-1181.58,0.00022465,2]
[319473134,1710799876671,-1747.53,0.00022465,2]
[319473135,1710799876680,-417.585999,0.00022465,7]
[319473136,1710799876689,-680.92,0.00022465,2]
[319473137,1710799876698,-417.585999,0.00022465,7]
[319473138,1710799876708,-500.0,0.00022465,2]
[319473139,1710799876717,-665.42,0.00022465,2]
[319473140,1710799876726,-500.0,0.00022465,2]
[319473141,1710799876736,-500.0,0.00022465,2]
[319473142,1710799876745,-417.585999,0.00022465,7]
[319473143,1710799876753,-417.585999,0.00022465,7]
[319473144,1710799876762,-1501.92,0.00022465,2]
[319473145,1710799876771,-2323.42,0.00022465,2]
[319473146,1710799876780,-2355.45,0.00022465,2]
[319473147,1710799876789,-2348.13,0.00022465,2]
[319473148,1710799876798,-500.0,0.00022465,2]
[319473149,1710799876807,-1841.43,0.00022465,2]
[319473150,1710799876816,-500.0,0.00022465,2]
[319473151,1710799876825,-633.95,0.00022465,2]
[319473152,1710799876835,-2789.32,0.00022465,2]
[319473153,1710799876844,-1047.26,0.00022465,2]
[319473154,1710799876853,-500.0,0.00022465,2]
[319473155,1710799876863,-500.0,0.00022465,2]
[319473156,1710799876872,-500.0,0.00022465,2]
[319473157,1710799876881,-506.7,0.00022465,2]
[319473158,1710799876890,-500.0,0.00022465,2]
[319473159,1710799876900,-2028.96,0.00022465,2]
[319473160,1710799876909,-499.012743,0.00022465,7]
[319473161,1710799876918,-727.29,0.00022465,2]
[319473162,1710799876927,-499.012743,0.00022465,7]
[319473163,1710799876936,-500.0,0.00022465,2]
[319473164,1710799876945,-1121.74,0.00022465,2]
[319473165,1710799876954,-500.0,0.00022465,2]
[319473166,1710799876963,-500.0,0.00022465,2]
[319473167,1710799876973,-499.012743,0.00022465,7]
[319473168,1710799876982,-499.012743,0.00022465,7]
[319473169,1710799876990,-151.0,0.00022465,7]
[319473170,1710799876999,-151.0,0.00022465,7]
[319473171,1710799877009,-151.0,0.00022465,7]
[319473172,1710799877018,-500.0,0.00022465,2]
[319473173,1710799877027,-1964.52,0.00022465,2]
[319473174,1710799877036,-151.0,0.00022465,7]
[319473175,1710799877045,-800.57,0.00022465,2]
[319473176,1710799877054,-855.83,0.00022465,2]
[319473177,1710799877063,-500.0,0.00022465,2]
[319473178,1710799877072,-500.0,0.00022465,2]
[319473179,1710799877081,-500.0,0.00022465,2]
[319473180,1710799877090,-151.0,0.00022465,7]
[319473181,1710799877099,-515.18,0.00022465,2]
[319473182,1710799877107,-151.0,0.00022465,7]
[319473183,1710799877117,-805.44,0.00022465,2]
[319473184,1710799877126,-1465.25,0.00022465,2]
[319473185,1710799877134,-500.0,0.00022465,2]
[319473186,1710799877143,-154.84533688,0.00022465,2]
[319473187,1710799877152,-703.59,0.00022465,2]
[319473188,1710799877161,-1137.55,0.00022465,2]
[319473189,1710799877170,-1372.51,0.00022465,2]
[319473190,1710799877179,-500.0,0.00022465,2]
[319473191,1710799877187,-1311.42,0.00022465,2]
[319473192,1710799877197,-693.23,0.00022465,2]
[319473193,1710799877205,-890.31,0.00022465,2]
[319473194,1710799877214,-606.63,0.00022465,2]
[319473195,1710799877224,-1355.8,0.00022465,2]
[319473196,1710799877232,-500.98013286,0.00022465,2]
[319473197,1710799877242,-633.23,0.00022465,2]
[319473198,1710799877251,-500.0,0.00022465,2]
[319473199,1710799877259,-931.19,0.00022465,2]
[319473200,1710799877268,-1311.22,0.00022465,2]
[319473201,1710799877277,-500.0,0.00022465,2]
[319473202,1710799877286,-931.2,0.00022465,2]
[319473203,1710799877295,-164.25726454,0.00022465,2]
[319473204,1710799877304,-500.0,0.00022465,2]
[319473205,1710799877313,-500.0,0.00022465,2]
[319473206,1710799877322,-560.88,0.00022465,2]
[319473207,1710799877332,-578.22,0.00022465,2]
[319473208,1710799877342,-500.0,0.00022465,2]
[319473209,1710799877351,-1373.23,0.00022465,2]
[319473210,1710799877360,-500.0,0.00022465,2]
[319473211,1710799877369,-466.5070248,0.00022465,2]
[319473212,1710799877379,-1189.08,0.00022465,2]
[319473213,1710799877388,-582.88,0.00022465,2]
[319473214,1710799877397,-500.0,0.00022465,2]
[319473215,1710799877407,-807.67,0.00022465,2]
[319473216,1710799877417,-500.0,0.00022465,2]
[319473217,1710799877426,-500.0,0.00022465,2]
[319473218,1710799877436,-500.0,0.00022465,2]
[319473219,1710799877446,-500.0,0.00022465,2]
[319473220,1710799877455,-500.0,0.00022465,2]
[319473221,1710799877465,-1318.07,0.00022465,2]
[319473222,1710799877474,-667.48,0.00022465,2]
[319473223,1710799877483,-2537.59,0.00022465,2]
[319473224,1710799877492,-1833.13,0.00022465,2]
[319473225,1710799877501,-500.0,0.00022465,2]
[319473226,1710799877510,-500.0,0.00022465,2]
[319473227,1710799877520,-584.63,0.00022465,2]
[319473228,1710799877529,-922.71,0.00022465,2]
[319473229,1710799877538,-522.08,0.00022465,2]
[319473230,1710799877547,-1186.68,0.00022465,2]
[319473231,1710799877556,-500.0,0.00022465,2]
[319473232,1710799877565,-500.0,0.00022465,2]
[319473233,1710799877579,-500.0,0.00022465,2]
[319473234,1710799877588,-500.0,0.00022465,2]
[319473235,1710799877597,-797.09,0.00022465,2]
[319473236,1710799877606,-1847.99,0.00022465,2]
[319473237,1710799877617,-998.55,0.00022465,2]
[319473238,1710799877627,-172.732054,0.00022465,7]
[319473239,1710799877637,-172.732054,0.00022465,7]
[319473240,1710799877647,-500.0,0.00022465,2]
[319473241,1710799877656,-500.0,0.00022465,2]
[319473242,1710799877665,-500.0,0.00022465,2]
[319473243,1710799877677,-172.732054,0.00022465,7]
[319473244,1710799877686,-500.0,0.00022465,2]
[319473245,1710799877696,-172.732054,0.00022465,7]
[319473246,1710799877704,-500.0,0.00022465,2]
[319473247,1710799877713,-1856.02,0.00022465,2]
[319473248,1710799877722,-1079.26,0.00022465,2]
[319473249,1710799877731,-1418.3,0.00022465,2]
[319473250,1710799877741,-897.94,0.00022465,2]
[319473251,1710799877750,-1186.25,0.00022465,2]
[319473252,1710799877759,-844.5,0.00022465,2]
[319473253,1710799877768,-500.0,0.00022465,2]
[319473254,1710799877777,-1228.33,0.00022465,2]
[319473255,1710799877786,-500.0,0.00022465,2]
[319473256,1710799877795,-656.86,0.00022465,2]
[319473257,1710799877805,-151.0,0.00022465,7]
[319473258,1710799877814,-151.0,0.00022465,7]
[319473259,1710799877823,-1254.05,0.00022465,2]
[319473260,1710799877833,-151.0,0.00022465,7]
[319473261,1710799877843,-151.0,0.00022465,7]
[319473262,1710799877853,-1220.28,0.00022465,2]
[319473263,1710799877864,-500.0,0.00022465,2]
[319473264,1710799877874,-524.26,0.00022465,2]
[319473265,1710799877883,-544.86,0.00022465,2]
[319473266,1710799877892,-1112.38,0.00022465,2]
[319473267,1710799877901,-1554.62,0.00022465,2]
[319473268,1710799877911,-500.0,0.00022465,2]
[319473269,1710799877920,-1046.24,0.00022465,2]
[319473270,1710799877928,-990.25,0.00022465,2]
[319473271,1710799877938,-500.0,0.00022465,2]
[319473272,1710799877947,-500.0,0.00022465,2]
[319473273,1710799877956,-525.88,0.00022465,2]
[319473274,1710799877965,-615.98,0.00022465,2]
[319473275,1710799877975,-1017.43,0.00022465,2]
[319473276,1710799877984,-500.0,0.00022465,2]
[319473277,1710799877993,-500.0,0.00022465,2]
[319473278,1710799878002,-500.0,0.00022465,2]
[319473279,1710799878011,-500.0,0.00022465,2]
[319473280,1710799878020,-1155.33,0.00022465,2]
[319473281,1710799878029,-3244.32,0.00022465,2]
[319473282,1710799878038,-527.83,0.00022465,2]
[319473283,1710799878048,-500.0,0.00022465,2]
[319473284,1710799878057,-1754.86,0.00022465,2]
[319473285,1710799878066,-320.70420598,0.00022465,2]
[319473286,1710799878075,-1859.5,0.00022465,2]
[319473287,1710799878085,-249.90938445,0.00022465,2]
[319473288,1710799878094,-500.0,0.00022465,2]
[319473289,1710799878103,-721.17,0.00022465,2]
[319473290,1710799878112,-1204.75,0.00022465,2]
[319473291,1710799878121,-500.0,0.00022465,2]
[319473292,1710799878130,-1304.47,0.00022465,2]
[319473293,1710799878139,-1387.32,0.00022465,2]
[319473294,1710799878149,-1084.75,0.00022465,2]
[319473295,1710799878158,-984.35,0.00022465,2]
[319473296,1710799878167,-500.0,0.00022465,2]
[319473297,1710799878176,-500.0,0.00022465,2]
[319473298,1710799878186,-500.0,0.00022465,2]
[319473299,1710799878195,-500.0,0.00022465,2]
[319473300,1710799878205,-500.0,0.00022465,2]
[319473301,1710799878214,-500.0,0.00022465,2]
[319473302,1710799878223,-1042.11,0.00022465,2]
[319473303,1710799878232,-550.03,0.00022465,2]